bitfinex/quotes_BTCUSD_20240715
["timestamp","ask_amount","ask_price","bid_price","bid_amount"]
[1721069886306,0.05078794,63654.0,63651.0,0.294206]
[1721069886517,0.1,63657.0,63653.0,0.157101]
[1721069886746,0.1,63657.0,63655.0,0.531889]
[1721069886747,0.13151033,63656.0,63655.0,0.531889]
[1721069886954,0.23151033,63656.0,63655.0,0.3164666]
[1721069887164,0.23108412,63656.0,63655.0,0.0606]
[1721069887368,0.15049715,63656.0,63655.0,0.0606]
[1721069887983,0.05049715,63656.0,63655.0,0.0606]
[1721069888903,0.05549715,63656.0,63655.0,0.0666]
[1721069889112,0.05549715,63656.0,63655.0,0.006]
[1721069889345,0.52677915,63656.0,63655.0,0.01]
[1721069889547,1.02016715,63656.0,63655.0,0.01]
[1721069889818,1.47331888,63656.0,63655.0,0.01]
[1721069890199,1.41331888,63656.0,63655.0,0.01]
[1721069890416,1.41265186,63656.0,63655.0,0.01]
[1721069890614,0.157109,63651.0,63644.0,0.0633]
[1721069890813,0.005,63646.0,63644.0,0.0633]
[1721069891019,0.05483013,63645.0,63644.0,0.0633]
[1721069891193,0.04983013,63645.0,63644.0,0.0633]
[1721069891819,0.05483013,63645.0,63644.0,0.0723]
[1721069892182,0.04983013,63645.0,63644.0,0.0633]
[1721069892601,0.05483013,63645.0,63644.0,0.0903]
[1721069892972,0.05483013,63645.0,63644.0,0.014]
[1721069893107,0.05483013,63645.0,63644.0,0.028]
[1721069893761,0.05465224,63645.0,63644.0,0.028]
[1721069894216,1.59169737,63645.0,63644.0,0.028]
[1721069894343,1.98092885,63645.0,63644.0,0.028]
[1721069894560,2.1658418,63645.0,63644.0,0.028]
[1721069894780,2.06832552,63645.0,63644.0,0.028]
[1721069894958,2.0447956,63645.0,63644.0,0.014]
[1721069895340,2.0447956,63645.0,63644.0,0.004]
[1721069895341,1.58563965,63645.0,63644.0,0.004]
[1721069895829,1.58563965,63645.0,63644.0,0.01654]
[1721069895830,0.22497885,63645.0,63644.0,0.01654]
[1721069895956,0.04999037,63645.0,63644.0,0.01854]
[1721069896373,0.1,63648.0,63644.0,0.01854]
[1721069896374,0.04999037,63646.0,63644.0,0.02054]
[1721069896572,0.10806353,63649.0,63644.0,0.01854]
[1721069896573,0.04999037,63645.0,63644.0,0.01854]
[1721069896829,0.04999037,63647.0,63644.0,0.01854]
[1721069897019,0.04999037,63646.0,63644.0,0.02054]
[1721069897252,0.04999037,63645.0,63644.0,0.004]
[1721069897656,0.00806353,63649.0,63644.0,0.004]
[1721069897657,0.04999037,63648.0,63644.0,0.004]
[1721069897857,0.00806353,63647.0,63643.0,0.157126]
[1721069898089,0.04999037,63646.0,63644.0,0.005]
[1721069898614,0.04999037,63646.0,63643.0,0.157126]
[1721069898821,0.04999037,63646.0,63644.0,0.006]
[1721069899299,0.04999037,63645.0,63644.0,0.006]
[1721069899512,0.04999037,63645.0,63642.0,0.221228]
[1721069899723,0.006,63646.0,63644.0,0.008]
[1721069899888,0.05263864,63645.0,63644.0,0.008]
[1721069900093,0.05203835,63645.0,63644.0,0.008]
[1721069900299,0.04897482,63645.0,63644.0,0.014]
[1721069900700,0.05397482,63645.0,63644.0,0.014]
[1721069900903,0.52533882,63645.0,63644.0,0.014]
[1721069901108,0.54833882,63645.0,63644.0,0.006]
[1721069901306,0.54833882,63645.0,63644.0,0.015]
[1721069901307,0.62133781,63645.0,63644.0,0.015]
[1721069901505,0.67147203,63645.0,63644.0,0.015]
[1721069901708,0.67147203,63645.0,63644.0,0.009]
[1721069902051,0.67147203,63645.0,63639.0,0.0661]
[1721069902052,0.005,63642.0,63639.0,0.0661]
[1721069902260,0.05273354,63641.0,63640.0,0.0614644]
[1721069902693,0.04967001,63641.0,63640.0,0.0614644]
[1721069903098,0.04967001,63641.0,63639.0,0.0661]
[1721069903271,0.00306353,63640.0,63639.0,0.0661]
[1721069903615,0.04955636,63640.0,63639.0,0.0661]
[1721069904248,0.04955636,63641.0,63639.0,0.0661]
[1721069904445,0.00306353,63640.0,63639.0,0.0661]
[1721069904649,0.05261989,63640.0,63639.0,0.0661]
[1721069904896,0.04955636,63640.0,63639.0,0.2847001]
[1721069905062,0.04955636,63640.0,63639.0,0.2987001]
[1721069905275,0.023,63645.0,63639.0,0.2987001]
[1721069905276,0.02606353,63645.0,63641.0,0.15713]
[1721069905492,0.02606353,63645.0,63640.0,0.2108985]
[1721069905493,0.04941314,63644.0,63640.0,0.2108985]
[1721069905669,0.00306353,63643.0,63640.0,0.2108985]
[1721069905858,0.00306353,63643.0,63641.0,0.0614641]
[1721069905859,0.04941314,63642.0,63641.0,0.0614641]
[1721069906279,0.04941314,63644.0,63641.0,0.0614641]
[1721069906501,0.00306353,63643.0,63641.0,0.0614641]
[1721069906705,0.00306353,63644.0,63642.0,0.0537655]
[1721069906913,0.04962571,63643.0,63642.0,0.0537655]
[1721069907308,0.04962571,63644.0,63642.0,0.0537655]
[1721069907513,0.00306353,63643.0,63642.0,0.0537655]
[1721069907717,0.05268924,63643.0,63642.0,0.0537655]
[1721069907931,0.04962571,63643.0,63642.0,0.0537655]
[1721069908121,0.04962571,63644.0,63642.0,0.0537655]
[1721069908353,0.05268924,63643.0,63642.0,0.0537655]
[1721069908764,0.04962571,63643.0,63642.0,0.0537655]
[1721069908919,0.04962571,63643.0,63642.0,0.0677655]
[1721069909277,0.023,63645.0,63642.0,0.0537655]
[1721069909278,0.04962571,63644.0,63642.0,0.0537655]
[1721069909430,0.023,63645.0,63643.0,0.0614641]
[1721069909808,0.05014077,63644.0,63643.0,0.0614641]
[1721069909981,0.5,63644.0,63643.0,0.0614641]
[1721069910179,0.55014077,63644.0,63643.0,0.0614641]
[1721069910801,0.55014077,63644.0,63642.0,0.014]
[1721069911009,0.0532043,63643.0,63642.0,0.014]
[1721069911248,0.0582043,63643.0,63642.0,0.014]
[1721069911863,0.005,63642.0,63639.0,0.221035]
[1721069912064,0.0532043,63641.0,63639.0,0.221035]
[1721069912289,0.05014077,63640.0,63639.0,0.3137279]
[1721069912487,0.05014077,63640.0,63639.0,0.1565929]
[1721069912663,0.05514077,63640.0,63639.0,0.0639]
[1721069913135,0.005,63641.0,63639.0,0.0779]
[1721069913481,0.005,63641.0,63639.0,0.0639]
[1721069913482,0.05282751,63640.0,63639.0,0.0639]
[1721069913674,0.04976398,63640.0,63639.0,0.0779]
[1721069913809,0.05282751,63640.0,63639.0,0.0919]
[1721069914014,0.05282751,63640.0,63639.0,0.0779]
[1721069914250,0.04976398,63640.0,63639.0,0.0919]
[1721069914837,0.04976398,63640.0,63639.0,0.0779]
[1721069915252,0.04976398,63640.0,63639.0,0.0919]
[1721069915456,0.04976398,63640.0,63639.0,0.0779]
[1721069915659,0.04976398,63640.0,63639.0,0.0639]
[1721069915860,0.04976398,63640.0,63639.0,0.2963011]
[1721069916062,0.07091181,63646.0,63645.0,0.527364]
[1721069916063,0.00083,63646.0,63645.0,0.527364]
[1721069916261,0.00083,63646.0,63645.0,1.30295]
[1721069916262,0.0504758,63646.0,63645.0,1.30295]
[1721069916488,0.05108397,63646.0,63645.0,1.3569145]
[1721069916833,0.00083,63646.0,63645.0,1.3569145]
[1721069917517,0.00083,63646.0,63645.0,1.3679145]
[1721069918694,0.00083,63646.0,63645.0,1.3569145]
[1721069918895,0.00083,63646.0,63645.0,1.3689145]
[1721069919096,0.00083,63646.0,63645.0,1.3829145]
[1721069919277,0.00083,63646.0,63645.0,1.3689145]
[1721069919478,0.00083,63646.0,63645.0,1.5569145]
[1721069919805,0.00083,63646.0,63645.0,1.5849145]
[1721069920813,0.00083,63646.0,63645.0,1.9991575]
[1721069921015,0.00083,63646.0,63645.0,2.3134005]
[1721069921215,0.00083,63646.0,63645.0,2.4134005]
[1721069921543,0.00083,63646.0,63645.0,2.3994005]
[1721069921911,0.00083,63646.0,63645.0,2.4134005]
[1721069922313,0.00083,63646.0,63645.0,2.3994005]
[1721069922507,0.00083,63646.0,63645.0,2.3854005]
[1721069922724,0.00083,63646.0,63645.0,2.3994005]
[1721069923142,0.00083,63646.0,63645.0,2.4134005]
[1721069923807,0.00083,63646.0,63645.0,2.4274005]
[1721069924382,0.00083,63646.0,63645.0,2.3274005]
[1721069924571,0.00083,63646.0,63645.0,2.4274005]
[1721069924745,0.00083,63646.0,63645.0,2.3274005]
[1721069924947,0.00083,63646.0,63645.0,2.0131575]
[1721069925154,0.00083,63646.0,63645.0,1.8131575]
[1721069925815,0.00083,63646.0,63645.0,1.7131575]
[1721069926053,0.00083,63646.0,63645.0,1.8131575]
[1721069926458,0.00083,63646.0,63645.0,1.7131575]
[1721069926588,0.00083,63646.0,63645.0,1.8131575]
[1721069927021,0.00083,63646.0,63645.0,1.7131575]
[1721069927240,0.00083,63646.0,63645.0,1.8131575]
[1721069927441,0.00083,63646.0,63645.0,2.0131575]
[1721069927973,0.00083,63646.0,63645.0,1.9131575]
[1721069928154,0.00083,63646.0,63645.0,1.8131575]
[1721069928560,0.00083,63646.0,63645.0,2.0131575]
[1721069929100,0.00083,63646.0,63645.0,1.9131575]
[1721069929299,0.00083,63646.0,63645.0,2.0131575]
[1721069929723,0.00083,63646.0,63645.0,1.9131575]
[1721069929947,0.00083,63646.0,63645.0,2.0131575]
[1721069931866,0.00083,63646.0,63645.0,1.8131575]
[1721069932079,0.00083,63646.0,63645.0,1.7131575]
[1721069932281,0.00083,63646.0,63645.0,1.8131575]
[1721069933424,0.00083,63646.0,63645.0,1.7131575]
[1721069933826,0.00083,63646.0,63645.0,1.8131575]
[1721069934632,0.00083,63646.0,63645.0,2.0131575]
[1721069934841,0.00083,63646.0,63645.0,1.9131575]
[1721069935040,0.00083,63646.0,63645.0,2.0131575]
[1721069935448,0.00083,63646.0,63645.0,2.1131575]
[1721069936080,0.00083,63646.0,63645.0,2.4274005]
[1721069936286,0.00083,63646.0,63645.0,2.7416435]
[1721069936494,0.00083,63670.0,63669.0,0.84131]
[1721069936699,0.00083,63670.0,63669.0,0.98931]
[1721069936903,0.00083,63670.0,63669.0,1.303434]
[1721069937820,0.00083,63670.0,63669.0,1.309434]
[1721069938033,0.00083,63670.0,63669.0,1.317434]
[1721069938233,0.00083,63670.0,63669.0,1.3713985]
[1721069939844,0.00083,63670.0,63669.0,1.3153985]
[1721069940373,0.04975964,63670.0,63669.0,1.3153985]
[1721069941009,0.04975964,63670.0,63669.0,0.2250265]
[1721069941010,0.05475964,63670.0,63669.0,0.2250265]
[1721069941210,0.05475964,63670.0,63669.0,0.014]
[1721069941211,0.18875964,63670.0,63669.0,0.014]
[1721069941415,0.34581864,63670.0,63669.0,0.014]
[1721069941648,0.68278813,63670.0,63669.0,0.014]
[1721069942185,0.74279035,63670.0,63669.0,0.014]
[1721069942783,0.68279035,63670.0,63669.0,0.014]
[1721069943529,0.75949119,63670.0,63669.0,0.014]
[1721069943682,1.13361019,63670.0,63669.0,0.014]
[1721069944331,1.16085041,63670.0,63669.0,0.014]
[1721069944755,1.02482784,63670.0,63669.0,0.014]
[1721069944929,1.15779261,63670.0,63669.0,0.014]
[1721069945899,0.20354231,63670.0,63669.0,0.014]
[1721069946146,0.04984147,63670.0,63669.0,0.014]
[1721069946457,0.04984147,63670.0,63669.0,0.0625213]
[1721069947433,0.04984147,63670.0,63669.0,0.2195833]
[1721069947633,0.04984147,63670.0,63669.0,0.5337073]
[1721069947854,0.04984147,63670.0,63669.0,0.0625213]
[1721069948104,0.05023545,63670.0,63669.0,0.0625213]
[1721069948274,0.05523545,63670.0,63669.0,0.0625213]
[1721069949454,0.05023545,63670.0,63669.0,0.0625213]
[1721069951299,0.04960242,63670.0,63669.0,0.0625213]
[1721069954459,0.04960242,63670.0,63669.0,0.5337073]
[1721069954648,0.04960242,63670.0,63669.0,0.679686]
[1721069954649,0.04959938,63670.0,63669.0,0.679686]
[1721069955027,0.04959938,63670.0,63669.0,0.99381]
[1721069955028,0.00083,63670.0,63669.0,0.99381]
[1721069955218,0.04959584,63670.0,63669.0,0.99381]
[1721069955754,0.04959584,63670.0,63669.0,1.307934]
[1721069956006,0.00083,63670.0,63669.0,1.307934]
[1721069959475,0.00083,63670.0,63669.0,1.251934]
[1721069959804,0.00083,63670.0,63669.0,1.307934]
[1721069964274,0.00073,63670.0,63669.0,1.307934]
[1721069965778,0.00073,63670.0,63669.0,0.93781]
[1721069965985,0.00073,63670.0,63669.0,0.99381]
[1721069966423,0.00073,63670.0,63669.0,1.307934]
[1721069969645,0.00073,63670.0,63669.0,1.607934]
[1721069969916,0.00073,63670.0,63669.0,1.936034]
[1721069970088,0.00073,63670.0,63669.0,2.150158]
[1721069970461,0.00073,63670.0,63669.0,2.250158]
[1721069970671,0.00073,63670.0,63669.0,2.236158]
[1721069970889,0.00073,63670.0,63669.0,2.243158]
[1721069971087,0.00073,63670.0,63669.0,2.252158]
[1721069971408,0.00073,63670.0,63669.0,2.145158]
[1721069971556,0.00073,63670.0,63669.0,2.150158]
[1721069971751,0.00073,63670.0,63669.0,2.250158]
[1721069973083,0.00073,63670.0,63669.0,2.264158]
[1721069973326,0.00073,63670.0,63669.0,2.250158]
[1721069973484,0.00073,63670.0,63669.0,2.236158]
[1721069973686,0.00073,63670.0,63669.0,2.564282]
[1721069973890,0.00073,63670.0,63669.0,2.578282]
[1721069974317,0.00073,63670.0,63669.0,2.350182]
[1721069974515,0.00073,63670.0,63669.0,2.550282]
[1721069974719,0.00073,63670.0,63669.0,2.564282]
[1721069974921,0.00073,63670.0,63669.0,2.578282]
[1721069975123,0.00073,63670.0,63669.0,2.264158]
[1721069975802,0.00073,63670.0,63669.0,2.26353362]
[1721069976010,0.00073,63670.0,63669.0,2.23553362]
[1721069976230,0.00073,63670.0,63669.0,2.24953362]
[1721069976441,0.00073,63670.0,63669.0,2.26353362]
[1721069976688,0.00073,63670.0,63669.0,1.70743362]
[1721069977161,0.00073,63670.0,63669.0,1.73543362]
[1721069977362,0.00073,63670.0,63669.0,1.72143362]
[1721069977906,0.00073,63670.0,63669.0,1.73543362]
[1721069977907,0.00063,63670.0,63669.0,1.73543362]
[1721069978113,0.00013,63670.0,63669.0,1.73543362]
[1721069978535,3e-05,63670.0,63669.0,1.42130962]
[1721069978758,3e-05,63670.0,63669.0,0.56106162]
[1721069978962,0.554078,63670.0,63669.0,0.014]
[1721069979168,1.52352338,63670.0,63669.0,0.014]
[1721069979335,1.73091186,63670.0,63669.0,0.042]
[1721069979568,1.53313508,63670.0,63669.0,0.042]
[1721069979789,1.21901608,63670.0,63669.0,0.014]
[1721069979990,1.21901608,63670.0,63669.0,0.028]
[1721069980200,2.37683421,63670.0,63669.0,0.029]
[1721069980412,2.58210018,63670.0,63669.0,0.001]
[1721069980605,2.58210018,63670.0,63650.0,0.157108]
[1721069980606,0.004,63655.0,63650.0,0.157108]
[1721069980788,0.004,63655.0,63651.0,0.2357533]
[1721069980789,0.06045493,63654.0,63651.0,0.2357533]
[1721069980951,0.0573914,63653.0,63652.0,0.157103]
[1721069982782,0.157104,63652.0,63651.0,0.0786483]
[1721069982984,0.157104,63652.0,63646.0,0.15803]
[1721069982985,0.0048,63651.0,63646.0,0.000913]
[1721069983143,0.0048,63651.0,63647.0,0.157116]
[1721069983144,0.00306353,63650.0,63647.0,0.157116]
[1721069984226,0.001,63652.0,63647.0,0.157116]
[1721069984227,0.00406353,63652.0,63647.0,0.157116]
[1721069984401,0.00306353,63650.0,63648.0,0.0608873]
[1721069984602,0.001,63652.0,63648.0,0.0608873]
[1721069984603,0.00306353,63651.0,63648.0,0.0608873]
[1721069984764,0.00306353,63651.0,63649.0,0.157111]
[1721069985395,0.00306353,63651.0,63648.0,0.2180003]
[1721069985600,0.001,63650.0,63649.0,0.0543423]
[1721069986030,0.0048,63651.0,63649.0,0.0543423]
[1721069986235,0.001,63650.0,63649.0,0.0593423]
[1721069986854,0.00786353,63653.0,63649.0,0.0593423]
[1721069987050,0.00786353,63653.0,63650.0,0.05776053]
[1721069987450,0.0048,63651.0,63650.0,0.05776053]
[1721069987648,0.0048,63651.0,63650.0,0.05676053]
[1721069988235,0.0048,63652.0,63650.0,0.05676053]
[1721069988507,0.0048,63652.0,63651.0,0.05370235]
[1721069988733,0.00199999,63653.0,63651.0,0.05370235]
[1721069988885,0.157097,63655.0,63651.0,0.05370235]
[1721069988886,0.00199999,63654.0,63651.0,0.05370235]
[1721069989088,0.00199999,63654.0,63652.0,0.02668164]
[1721069989323,0.00199999,63654.0,63652.0,0.02568164]
[1721069989705,0.00199999,63654.0,63653.0,0.222001]
[1721069989868,0.0048,63662.0,63654.0,0.157099]
[1721069989869,0.0048,63659.0,63654.0,0.157099]
[1721069990057,0.161887,63659.0,63655.0,0.05852725]
[1721069990254,0.00779999,63658.0,63655.0,0.05852725]
[1721069991915,0.00299999,63658.0,63655.0,0.13612725]
[1721069992061,0.00299999,63661.0,63656.0,0.157092]
[1721069992256,0.16008199,63661.0,63656.0,0.05370235]
[1721069992480,0.157085,63660.0,63656.0,0.05370235]
[1721069992684,0.00299999,63659.0,63657.0,0.05852725]
[1721069994811,0.00299999,63660.0,63657.0,0.05852725]
[1721069995025,0.001,63658.0,63657.0,0.05852725]
[1721069995194,0.00779999,63661.0,63657.0,0.05852725]
[1721069995422,0.00779999,63661.0,63658.0,0.05370235]
[1721069995539,0.0048,63659.0,63658.0,0.05370235]
[1721069995743,0.0048,63658.0,63654.0,0.157097]
[1721069995957,0.314164,63661.0,63653.0,0.222001]
[1721069995958,0.00779999,63657.0,63653.0,0.222001]
[1721069996176,0.00779999,63657.0,63654.0,0.0775618]
[1721069996621,0.00299999,63657.0,63654.0,0.0775618]
[1721069996806,0.00299999,63657.0,63654.0,0.0835618]
[1721069997239,0.00299999,63657.0,63655.0,0.0346678]
[1721069998387,0.00779999,63657.0,63655.0,0.0346678]
[1721069998589,0.0048,63656.0,63655.0,0.0346678]
[1721069999144,0.0058,63657.0,63655.0,0.0346678]
[1721069999258,0.0058,63657.0,63656.0,0.02646688]
[1721069999476,0.0068,63657.0,63656.0,0.02646688]
[1721069999879,0.0058,63657.0,63656.0,0.02646688]
[1721070000086,0.0058,63657.0,63656.0,0.02546688]
[1721070000297,0.0058,63657.0,63655.0,0.0446678]
[1721070000298,0.0058,63657.0,63655.0,0.01]
[1721070000299,0.356094,63656.0,63655.0,0.01]
[1721070000532,1.24385031,63656.0,63655.0,0.01]
[1721070000758,1.24385031,63656.0,63655.0,0.016]
[1721070000759,1.93691328,63656.0,63655.0,0.016]
[1721070001127,2.02839443,63656.0,63655.0,0.016]
[1721070001374,2.43232377,63656.0,63655.0,0.016]
[1721070001563,1.164615,63647.0,63633.0,0.0623]
[1721070001769,1.164615,63647.0,63628.0,0.5472143]
[1721070001770,2.14696869,63647.0,63628.0,0.5472143]
[1721070001979,1.8532139,63647.0,63628.0,0.5472143]
[1721070002141,0.79241731,63647.0,63635.0,0.056]
[1721070002354,0.0048,63648.0,63639.0,0.0615]
[1721070002553,0.315188,63657.0,63655.0,0.157096]
[1721070002554,0.013,63656.0,63655.0,0.157096]
[1721070002920,0.013,63656.0,63655.0,0.670189]
[1721070003125,0.013,63656.0,63655.0,0.984382]
[1721070003329,0.013,63656.0,63655.0,0.978382]
[1721070003770,0.00306353,63664.0,63658.0,0.157087]
[1721070004159,0.00306353,63664.0,63659.0,0.157086]
[1721070004815,0.00306353,63664.0,63659.0,0.156086]
[1721070005027,0.00306353,63664.0,63657.0,0.370181]
[1721070005029,0.00306353,63664.0,63663.0,0.662931]
[1721070005230,0.00306353,63664.0,63663.0,0.977085]
[1721070005849,0.0048,63675.0,63663.0,0.977085]
[1721070005850,0.0048,63671.0,63664.0,0.157073]
[1721070006051,0.0048,63671.0,63665.0,0.2177647]
[1721070006261,0.0048,63669.0,63665.0,0.2177647]
[1721070006677,0.157054,63672.0,63665.0,0.2167647]
[1721070006678,0.0048,63666.0,63665.0,0.2167647]
[1721070006882,0.0048,63666.0,63665.0,0.157072]
[1721070007413,0.0048,63666.0,63665.0,0.487216]
[1721070007646,0.002,63669.0,63668.0,0.157064]
[1721070007910,0.002,63669.0,63668.0,0.2193547]
[1721070008051,0.002,63669.0,63668.0,0.2183547]
[1721070008252,0.002,63669.0,63668.0,0.5324837]
[1721070009042,0.05717371,63669.0,63668.0,0.2183547]
[1721070009243,0.05717371,63669.0,63668.0,0.0612907]
[1721070009244,0.0569743,63669.0,63668.0,0.0612907]
[1721070009468,0.0048,63672.0,63668.0,0.0612907]
[1721070009681,0.06003977,63671.0,63668.0,0.157064]
[1721070009902,0.0048,63665.0,63657.0,0.056]
[1721070010126,0.0048,63665.0,63663.0,0.292777]
[1721070010341,0.001,63669.0,63664.0,0.2177679]
[1721070010562,0.0058,63669.0,63668.0,0.008]
[1721070010765,0.06025954,63670.0,63668.0,0.004]
[1721070010971,0.05719601,63669.0,63668.0,0.004]
[1721070011208,0.06199601,63669.0,63668.0,0.03874679]
[1721070011421,0.0048,63669.0,63668.0,0.03874679]
[1721070011644,0.0058,63669.0,63668.0,0.03874679]
[1721070012025,0.0058,63669.0,63668.0,0.03574679]
[1721070012227,0.0068,63669.0,63668.0,0.03574679]
[1721070012771,0.001,63669.0,63668.0,0.50693979]
[1721070013108,0.002,63669.0,63668.0,0.51593979]
[1721070013310,0.003,63669.0,63668.0,0.52393979]
[1721070013489,0.003,63669.0,63668.0,1.03986879]
[1721070013735,0.003,63669.0,63668.0,0.98386879]
[1721070015348,0.003,63669.0,63668.0,1.03986879]
[1721070015567,0.003,63669.0,63668.0,0.98386879]
[1721070015739,0.003,63669.0,63668.0,1.03986879]
[1721070015940,0.003,63669.0,63668.0,1.35399779]
[1721070017463,0.003,63669.0,63668.0,1.29799779]
[1721070017663,0.003,63669.0,63668.0,1.35399779]
[1721070018000,0.003,63669.0,63668.0,1.29799779]
[1721070026486,0.003,63669.0,63668.0,1.35399779]
[1721070029769,0.003,63669.0,63668.0,1.95912679]
[1721070029770,0.002,63669.0,63668.0,1.95912679]
[1721070030016,0.00076,63673.0,63668.0,1.95912679]
[1721070030017,0.00076,63673.0,63672.0,1.286872]
[1721070030215,0.00076,63673.0,63672.0,1.828081]
[1721070030419,0.00076,63673.0,63672.0,2.24119]
[1721070030654,0.00076,63673.0,63672.0,1.81309]
[1721070031061,0.00076,63673.0,63672.0,1.81109]
[1721070031302,0.00076,63673.0,63672.0,1.74683679]
[1721070031499,0.00076,63673.0,63672.0,1.86083679]
[1721070031674,0.00176,63673.0,63672.0,1.86083679]
[1721070032406,0.00176,63673.0,63672.0,0.171054]
[1721070032804,0.00176,63673.0,63672.0,0.499163]
[1721070033223,0.00176,63673.0,63672.0,0.851272]
[1721070033224,0.05901444,63673.0,63672.0,0.851272]
[1721070033436,0.05901444,63673.0,63672.0,1.151381]
[1721070033636,0.05901444,63673.0,63672.0,1.179381]
[1721070033776,0.05901444,63673.0,63672.0,1.245581]
[1721070034010,0.05901444,63673.0,63672.0,1.293281]
[1721070034210,0.05901444,63673.0,63672.0,1.307281]
[1721070034416,0.05901444,63673.0,63672.0,1.321281]
[1721070034625,0.05937163,63673.0,63672.0,1.321281]
[1721070034869,0.00076,63673.0,63672.0,1.321281]
[1721070037337,0.00076,63673.0,63672.0,1.307281]
[1721070037691,0.00076,63673.0,63672.0,1.321281]
[1721070038091,0.00076,63673.0,63672.0,1.007172]
[1721070039531,0.00076,63673.0,63672.0,0.979172]
[1721070039731,0.00076,63673.0,63672.0,0.993172]
[1721070039894,0.00076,63673.0,63672.0,1.007172]
[1721070040283,0.00076,63673.0,63672.0,0.993172]
[1721070040594,0.00076,63673.0,63672.0,1.007172]
[1721070047254,0.00076,63673.0,63672.0,1.321281]
[1721070047418,0.00076,63673.0,63672.0,1.40233338]
[1721070047775,0.00076,63673.0,63672.0,1.521281]
[1721070048287,0.00076,63673.0,63672.0,1.507281]
[1721070048489,0.00076,63673.0,63672.0,1.92139]
[1721070048728,0.00076,63673.0,63672.0,2.03539]
[1721070049046,0.00076,63673.0,63672.0,2.02139]
[1721070049454,0.00076,63673.0,63672.0,2.03539]
[1721070050336,0.00076,63673.0,63672.0,2.04939]
[1721070050837,0.00076,63673.0,63672.0,1.521281]
[1721070051042,0.00076,63673.0,63672.0,1.421281]
[1721070051315,0.00076,63673.0,63672.0,1.435281]
[1721070054881,0.00076,63673.0,63672.0,0.042]
[1721070055142,0.06619206,63673.0,63672.0,0.042]
[1721070055343,0.19899206,63673.0,63672.0,0.042]
[1721070055550,0.35604406,63673.0,63672.0,0.042]
[1721070055750,1.11579692,63673.0,63672.0,0.042]
[1721070055951,1.64412636,63673.0,63672.0,0.042]
[1721070056151,1.76171571,63673.0,63672.0,0.028]
[1721070056350,1.667434,63669.0,63668.0,0.000913]
[1721070056504,2.11780728,63669.0,63668.0,0.000913]
[1721070056910,2.05780728,63669.0,63668.0,0.000913]
[1721070057388,1.83937886,63669.0,63668.0,0.000913]
[1721070057566,1.89581772,63669.0,63668.0,0.000913]
[1721070057898,1.89581772,63669.0,63651.0,0.31421]
[1721070057899,0.165099,63654.0,63647.0,0.4863143]
[1721070058102,0.165099,63654.0,63646.0,0.061113]
[1721070058103,0.0088,63650.0,63648.0,0.4863143]
[1721070058304,0.21355086,63649.0,63646.0,0.000913]
[1721070058507,0.165914,63648.0,63646.0,0.000913]
[1721070058622,0.05667558,63647.0,63646.0,0.000913]
[1721070058826,0.85105758,63647.0,63646.0,0.000913]
[1721070059481,0.84225758,63647.0,63646.0,0.000913]
[1721070059656,0.21379158,63647.0,63646.0,0.000913]
[1721070060352,0.21379158,63647.0,63646.0,0.005913]
[1721070060564,0.480149,63647.0,63646.0,0.005913]
[1721070060773,0.53708915,63647.0,63646.0,0.000913]
[1721070061194,0.5370897,63647.0,63646.0,0.011913]
[1721070061608,1.6655557,63647.0,63646.0,0.005913]
[1721070061955,1.6655557,63647.0,63646.0,0.011913]
[1721070062277,1.6655557,63647.0,63646.0,0.006913]
[1721070062828,1.6655557,63647.0,63646.0,0.011913]
[1721070063069,1.66478156,63647.0,63646.0,0.011913]
[1721070063543,1.66478156,63647.0,63646.0,0.005913]
[1721070063781,1.66494119,63647.0,63646.0,0.011913]
[1721070064342,1.66494119,63647.0,63646.0,0.000913]
[1721070064842,1.66494119,63647.0,63646.0,0.003913]
[1721070065128,2.07064119,63647.0,63646.0,0.000913]
[1721070065363,2.6240921,63647.0,63646.0,0.000913]
[1721070065619,2.6240921,63647.0,63646.0,0.006913]
[1721070065620,2.50551511,63647.0,63646.0,0.006913]
[1721070065878,2.50551511,63647.0,63646.0,0.003913]
[1721070066351,2.19067896,63647.0,63646.0,0.006913]
[1721070066607,2.08713804,63647.0,63646.0,0.003913]
[1721070066839,2.08713804,63647.0,63646.0,0.000913]
[1721070067083,2.08713804,63647.0,63646.0,0.006913]
[1721070069324,2.14713804,63647.0,63646.0,0.006913]
[1721070069579,2.091415,63647.0,63646.0,0.006913]
[1721070069798,2.14744882,63647.0,63646.0,0.006913]
[1721070070303,2.091415,63647.0,63646.0,0.006913]
[1721070070590,2.291415,63647.0,63646.0,0.006913]
[1721070070867,3.09739992,63647.0,63646.0,0.006913]
[1721070071069,3.15725198,63647.0,63646.0,0.006913]
[1721070071272,3.47148498,63647.0,63646.0,0.006913]
[1721070071479,3.47148498,63647.0,63646.0,0.003913]
[1721070071879,3.47148498,63647.0,63646.0,0.000913]
[1721070072079,3.48221588,63647.0,63646.0,0.001913]
[1721070072286,2.92236382,63647.0,63646.0,0.001913]
[1721070072493,3.35846472,63647.0,63646.0,0.000913]
[1721070072700,3.21439894,63647.0,63646.0,0.000913]
[1721070072909,2.69011381,63647.0,63646.0,0.001913]
[1721070073117,2.54351804,63647.0,63646.0,0.000913]
[1721070073317,2.50785405,63647.0,63646.0,0.000913]
[1721070073524,2.47231313,63647.0,63646.0,0.001913]
[1721070073924,2.47431313,63647.0,63646.0,0.001913]
[1721070074331,2.47431313,63647.0,63646.0,0.000913]
[1721070074332,2.47231313,63647.0,63646.0,0.000913]
[1721070074532,2.63443104,63647.0,63646.0,0.000913]
[1721070074737,2.63643104,63647.0,63646.0,0.001913]
[1721070074960,2.47431313,63647.0,63646.0,0.001913]
[1721070075196,2.48231313,63647.0,63646.0,0.002913]
[1721070075608,2.47431313,63647.0,63646.0,0.001913]
[1721070075828,2.48230318,63647.0,63646.0,0.002913]
[1721070076029,2.7324823,63647.0,63646.0,0.001913]
[1721070076411,2.5404823,63647.0,63646.0,0.002913]
[1721070076611,2.5324823,63647.0,63646.0,0.001913]
[1721070076835,2.5324823,63647.0,63646.0,0.002913]